bitfinex/quotes_ETHUSD_20240717
["timestamp","ask_amount","ask_price","bid_price","bid_amount"]
[1721258887461,0.23677784,3405.6,3405.1,2.93675]
[1721258887662,3.55056131,3405.7,3405.1,2.93675]
[1721258887873,0.23677787,3405.6,3405.1,2.93675]
[1721258888047,3.55056131,3405.7,3405.1,2.93675]
[1721258888251,0.23677612,3405.6,3405.1,2.93675]
[1721258888455,3.55056131,3405.7,3405.1,2.93675]
[1721258888782,0.23675277,3405.6,3405.1,2.93675]
[1721258888957,0.8510957,3405.6,3405.0,2.3831]
[1721258889146,0.23678898,3405.5,3404.5,2.93726]
[1721258889341,2.93666,3405.3,3404.4,2.9137]
[1721258889545,2.93678,3405.1,3404.4,5.85106]
[1721258889739,3.55109131,3405.1,3404.4,5.85106]
[1721258889935,0.23690224,3405.0,3404.4,5.85106]
[1721258890137,0.85121355,3405.0,3404.4,5.85106]
[1721258890356,2.93678,3405.1,3404.4,5.85106]
[1721258890556,3.55109131,3405.1,3404.4,5.85106]
[1721258890774,0.61431131,3405.2,3404.4,5.85106]
[1721258891067,0.61431131,3405.2,3404.5,2.93728]
[1721258891285,3.55099131,3405.2,3404.5,2.93728]
[1721258891785,2.93677,3405.1,3404.5,2.93728]
[1721258892489,0.61431131,3405.2,3404.5,2.93728]
[1721258893191,3.55099131,3405.2,3404.5,2.93728]
[1721258893541,0.61431131,3405.2,3404.5,2.93728]
[1721258894470,0.61431131,3405.2,3404.6,2.93718]
[1721258894875,0.23685734,3405.1,3404.6,2.93718]
[1721258895076,0.61431131,3405.2,3404.6,2.93718]
[1721258895260,3.85807697,3405.3,3404.6,2.93718]
[1721258895261,0.85743207,3405.1,3404.6,2.93718]
[1721258895590,0.61431131,3405.1,3404.6,2.93718]
[1721258895979,0.61431131,3405.2,3404.6,2.93718]
[1721258896277,0.8574907,3405.1,3404.6,2.93718]
[1721258896438,0.61431131,3405.1,3404.6,2.93718]
[1721258896837,0.61431131,3405.1,3404.7,2.9371]
[1721258897042,0.61431131,3405.2,3404.7,2.9371]
[1721258897243,0.8575038,3405.1,3404.7,2.9371]
[1721258897442,0.61431131,3405.1,3404.7,2.9371]
[1721258898153,0.61431131,3405.2,3404.7,2.9371]
[1721258898354,0.85757868,3405.1,3404.7,2.9371]
[1721258898552,0.61431131,3405.1,3404.7,2.9371]
[1721258898759,0.61431131,3405.2,3404.7,2.9371]
[1721258898956,0.24324171,3405.1,3404.7,2.9371]
[1721258899274,0.85758451,3405.1,3404.7,2.9371]
[1721258899478,0.85758451,3405.0,3404.7,2.9371]
[1721258899642,0.61431131,3405.0,3404.7,2.9371]
[1721258899848,0.24334764,3404.9,3404.7,2.9371]
[1721258900048,0.61431131,3405.1,3404.7,2.9371]
[1721258901281,0.85765223,3405.0,3404.7,2.9371]
[1721258901488,0.24334092,3404.9,3404.7,2.9371]
[1721258901980,0.85765223,3404.9,3404.7,2.9371]
[1721258902183,0.61431131,3405.0,3404.7,2.9371]
[1721258902478,0.85787355,3404.9,3404.7,2.9371]
[1721258902654,0.61431131,3404.9,3404.7,2.9371]
[1721258903056,0.61431131,3405.0,3404.7,2.9371]
[1721258903380,0.92229255,3405.1,3405.0,2.93685]
[1721258903679,0.92229255,3405.1,3405.0,5.8737]
[1721258903680,0.24367756,3405.1,3405.0,5.8737]
[1721258903978,0.61483465,3405.4,3405.2,2.93668]
[1721258904278,0.24357444,3405.3,3405.2,3.855145]
[1721258904461,0.92229255,3405.4,3405.3,2.93659]
[1721258905277,1.16607105,3405.4,3405.3,2.93659]
[1721258905482,0.92229255,3405.4,3405.3,2.93659]
[1721258906475,2.02843658,3405.4,3405.3,6.0945725]
[1721258906678,1.16718281,3405.4,3405.3,9.0311625]
[1721258907160,0.92335004,3405.4,3405.3,9.0311625]
[1721258907564,1.16718281,3405.4,3405.3,9.0311625]
[1721258908086,0.92335004,3405.4,3405.3,9.0311625]
[1721258908262,1.16718281,3405.4,3405.3,9.0311625]
[1721258908479,0.92335004,3405.4,3405.3,9.0311625]
[1721258909284,0.80060114,3405.4,3405.3,9.0311625]
[1721258909496,1.4727188,3405.5,3405.4,2.93651]
[1721258910002,0.80069022,3405.5,3405.4,2.93651]
[1721258910203,1.47627026,3405.5,3405.4,2.93651]
[1721258910505,2.03286431,3405.5,3405.4,2.93651]
[1721258910674,0.80069022,3405.5,3405.4,2.93651]
[1721258910866,2.03286431,3405.5,3405.4,2.93651]
[1721258911703,2.03281905,3405.5,3405.4,2.93651]
[1721258912489,2.03281905,3405.5,3405.4,3.563828]
[1721258914271,0.80064496,3405.5,3405.4,2.93651]
[1721258914703,0.80060573,3405.5,3405.4,2.93651]
[1721258915207,0.80528859,3405.5,3405.4,2.93651]
[1721258915713,0.8052722,3405.5,3405.4,2.93651]
[1721258916403,1.48085224,3405.6,3405.4,2.93651]
[1721258916605,0.8052722,3405.5,3405.4,2.93651]
[1721258916771,0.8052722,3405.5,3405.4,5.37751]
[1721258916976,1.48085224,3405.6,3405.4,5.37751]
[1721258917204,0.8052722,3405.5,3405.4,5.37751]
[1721258917372,1.23217409,3405.6,3405.4,5.37751]
[1721258917577,0.8052722,3405.5,3405.4,5.37751]
[1721258917775,0.8643391,3405.5,3405.4,6.26892]
[1721258917975,0.61573943,3405.7,3405.6,2.93634]
[1721258918315,0.92361355,3405.9,3405.6,2.93634]
[1721258918316,0.61573943,3405.9,3405.8,5.87232]
[1721258918606,0.86416243,3405.9,3405.8,6.986774]
[1721258918827,0.248423,3405.9,3405.8,6.986774]
[1721258919538,0.61537382,3405.9,3405.8,6.986774]
[1721258919674,0.86379682,3405.9,3405.8,6.986774]
[1721258920920,0.24833098,3405.9,3405.8,6.986774]
[1721258921084,0.86358669,3405.9,3405.8,6.986774]
[1721258921288,0.61524403,3406.0,3405.9,2.93608]
[1721258921488,0.86354078,3406.0,3405.9,2.93608]
[1721258921708,0.86354078,3406.0,3405.9,3.8683294]
[1721258923130,0.86354078,3406.0,3405.9,6.8044094]
[1721258923892,0.61524403,3406.0,3405.9,6.8044094]
[1721258924804,0.61524403,3406.0,3405.9,3.8683294]
[1721258925000,0.86654258,3406.0,3405.9,3.8683294]
[1721258925219,0.25129855,3406.0,3405.9,3.8683294]
[1721258925673,0.86654258,3406.0,3405.9,3.8683294]
[1721258926206,0.61524403,3406.1,3406.0,2.93599]
[1721258926402,0.61524403,3406.1,3406.0,3.61642194]
[1721258926403,0.86649814,3406.1,3406.0,3.61642194]
[1721258927310,0.86648645,3406.1,3406.0,3.61642194]
[1721258929635,0.86648645,3406.1,3406.0,2.93599]
[1721258929814,0.86648645,3406.1,3405.6,2.93633]
[1721258930011,0.61524403,3405.9,3405.5,2.9364]
[1721258930237,0.81334565,3406.2,3405.5,2.9364]
[1721258930238,0.86648645,3405.8,3405.5,2.9364]
[1721258930432,0.61524403,3405.8,3405.5,2.9364]
[1721258930644,0.25128357,3405.7,3405.5,2.9364]
[1721258930807,0.61524403,3405.7,3405.5,2.9364]
[1721258931450,0.61524403,3405.8,3405.5,2.9364]
[1721258931757,0.2512526,3405.7,3405.5,2.9364]
[1721258931958,0.61524403,3405.8,3405.5,2.9364]
[1721258932261,0.86650012,3405.7,3405.5,2.9364]
[1721258932426,0.61524403,3405.8,3405.5,2.9364]
[1721258932626,0.25126082,3405.7,3405.5,2.9364]
[1721258932860,0.61524403,3405.8,3405.5,2.9364]
[1721258933249,0.25123372,3405.7,3405.5,2.9364]
[1721258933460,0.61524403,3405.8,3405.5,2.9364]
[1721258933645,0.86649954,3405.7,3405.5,2.9364]
[1721258933827,0.61524403,3405.8,3405.5,2.9364]
[1721258934021,0.92361355,3405.9,3405.5,2.9364]
[1721258934022,0.61524403,3405.7,3405.5,2.9364]
[1721258934658,0.61524403,3405.7,3405.4,3.3365]
[1721258935853,0.56524403,3405.7,3405.4,4.379326]
[1721258936267,0.25538194,3405.6,3405.4,4.379326]
[1721258936561,0.25542831,3405.5,3405.4,3.3365]
[1721258936762,0.92361355,3405.7,3405.4,3.3365]
[1721258936973,0.25542785,3405.6,3405.4,3.3365]
[1721258937282,0.25542785,3405.5,3405.4,3.3365]
[1721258939768,0.25542785,3405.5,3405.4,0.4]
[1721258940631,0.6790414,3405.6,3405.4,0.4]
[1721258941431,6.89324154,3405.5,3405.4,0.4]
[1721258941637,8.07194223,3405.5,3405.4,0.4]
[1721258942230,6.89324154,3405.5,3405.4,0.4]
[1721258942432,8.07199805,3405.5,3405.4,0.4]
[1721258942859,8.55388886,3405.5,3405.4,0.4]
[1721258943132,5.83724154,3405.5,3405.4,0.4]
[1721258943346,7.01590256,3405.5,3405.4,0.4]
[1721258944135,1.72988256,3405.5,3405.4,0.4]
[1721258944429,1.78169071,3405.5,3405.4,0.74135]
[1721258944945,1.23046917,3405.6,3405.4,0.74135]
[1721258945146,1.78169071,3405.5,3405.4,0.4]
[1721258945366,1.23046917,3405.5,3405.4,0.4]
[1721258945529,1.78169071,3405.5,3405.4,0.4]
[1721258946042,1.23046917,3405.5,3405.4,0.4]
[1721258946434,1.78169071,3405.5,3405.4,0.4]
[1721258946650,1.78195813,3405.5,3405.4,0.4]
[1721258947280,2.0895,3405.6,3405.4,0.4]
[1721258947495,0.55122154,3405.5,3405.4,0.4]
[1721258947788,3.26812872,3405.5,3405.4,0.4]
[1721258948101,0.55122154,3405.5,3405.4,0.4]
[1721258948478,0.55122154,3405.7,3405.4,0.4]
[1721258948678,2.71753848,3405.6,3405.4,0.4]
[1721258948974,0.55122154,3405.5,3405.4,0.4]
[1721258949300,1.17860278,3405.5,3405.4,0.4]
[1721258949478,3.26875942,3405.5,3405.4,0.4]
[1721258949806,0.55122154,3405.5,3405.4,1.038706]
[1721258950196,0.55122154,3405.5,3405.4,0.4]
[1721258950367,1.78262294,3405.5,3405.4,0.4]
[1721258950996,1.2314014,3405.5,3405.4,0.4]
[1721258951201,2.02151953,3405.5,3405.4,0.4]
[1721258951401,1.2314014,3405.5,3405.4,0.4]
[1721258952206,0.55122154,3405.5,3405.4,0.4]
[1721258952499,2.02154323,3405.5,3405.4,0.4]
[1721258952665,0.79013559,3405.5,3405.4,0.4]
[1721258952870,0.79013913,3405.5,3405.4,0.4]
[1721258954605,1.9687632,3405.5,3405.4,0.4]
[1721258955010,1.9687632,3405.5,3405.1,2.93676]
[1721258955011,1.96876915,3405.5,3405.1,2.93676]
[1721258955308,0.92354729,3405.2,3405.1,2.93676]
[1721258955506,1.1624714,3405.2,3405.1,3.87425]
[1721258958007,1.16245472,3405.2,3405.1,3.87425]
[1721258961125,0.92354729,3405.2,3405.1,3.87425]
[1721258961417,1.16244188,3405.2,3404.9,2.93694]
[1721258961618,0.61557246,3405.0,3404.7,2.93711]
[1721258961915,0.92354729,3405.2,3404.7,2.93711]
[1721258961916,0.8544732,3404.9,3404.7,2.93711]
[1721258962116,0.61557246,3405.0,3404.7,2.93711]
[1721258962284,0.85447596,3404.9,3404.7,3.859077]
[1721258962485,0.61557246,3404.9,3404.7,3.859077]
[1721258962915,0.61557246,3405.0,3404.7,3.859077]
[1721258963116,0.23891326,3404.9,3404.7,3.859077]
[1721258963421,0.61557246,3405.0,3404.7,3.859077]
[1721258963641,0.61557246,3405.0,3404.7,0.921967]
[1721258963818,0.61557246,3404.8,3404.6,6.28248]
[1721258963989,0.85446994,3404.7,3404.1,2.93761]
[1721258964191,0.61557246,3404.4,3404.1,2.93761]
[1721258964422,0.61557246,3404.4,3404.2,0.83596]
[1721258964609,0.61557246,3404.5,3404.2,0.83596]
[1721258964809,0.23898206,3404.4,3404.2,0.83596]
[1721258965014,0.85455671,3404.4,3404.2,0.83596]
[1721258965327,0.85453528,3404.3,3404.2,0.83596]
[1721258965487,0.23896282,3404.3,3404.2,0.83596]
[1721258965689,0.61557246,3404.4,3404.2,0.83596]
[1721258965913,0.8545244,3404.3,3404.2,0.83596]
[1721258966131,0.23895194,3404.3,3404.2,0.83596]
[1721258966992,0.23895194,3404.3,3404.2,1.89196]
[1721258967198,0.61557246,3404.4,3404.2,1.89196]
[1721258967447,0.61557246,3404.4,3404.3,3.668839]
[1721258967735,0.92354729,3404.6,3404.3,3.668839]
[1721258967736,0.61557246,3404.6,3404.5,2.93728]
[1721258967916,0.85719659,3404.6,3404.5,2.93728]
[1721258968389,0.61522057,3404.7,3404.5,2.93728]
[1721258968590,0.61522057,3404.7,3404.6,7.9320119]
[1721258968795,0.61522057,3405.0,3404.7,2.93711]
[1721258969100,0.61522057,3405.0,3404.8,1.056]
[1721258969101,0.24183323,3404.9,3404.8,1.056]
[1721258969423,0.8570538,3404.9,3404.8,1.056]
[1721258969626,0.61522057,3405.0,3404.8,1.84919219]
[1721258970693,0.61522057,3405.0,3404.8,4.78621219]
[1721258971523,0.24659939,3404.9,3404.8,4.78621219]
[1721258971731,0.61522057,3405.0,3404.8,4.78621219]
[1721258972097,0.24659333,3404.9,3404.8,4.78621219]
[1721258972429,0.24659333,3404.9,3404.8,3.73021219]
[1721258972430,0.61522057,3404.9,3404.8,3.73021219]
[1721258972631,0.86199094,3404.9,3404.6,3.9388119]
[1721258972798,0.61540152,3404.8,3404.4,6.34734]
[1721258973127,0.86199485,3404.7,3404.4,2.93734]
[1721258973324,0.61540152,3404.7,3404.5,2.93728]
[1721258973531,0.61540152,3404.7,3404.5,3.7034799]
[1721258974028,0.92354729,3404.9,3404.5,3.7034799]
[1721258974029,0.61540152,3404.8,3404.5,3.7034799]
[1721258974246,0.86212202,3404.7,3404.5,3.7034799]
[1721258974398,0.61540152,3404.8,3404.5,3.7034799]
[1721258974894,0.86212431,3404.7,3404.5,3.7034799]
[1721258975101,0.61540152,3404.7,3404.5,3.7034799]
[1721258975331,0.86845111,3404.6,3404.5,3.7034799]
[1721258975532,0.61540152,3404.7,3404.5,3.7034799]
[1721258976447,1.23139639,3405.0,3404.6,0.44348589]
[1721258976448,0.92354729,3404.8,3404.6,0.44348589]
[1721258976772,0.92354729,3404.8,3404.5,3.7034799]
[1721258977071,0.61572864,3404.6,3404.5,3.7034799]
[1721258977258,0.61572864,3404.7,3404.5,3.7034799]
[1721258977715,0.86884296,3404.6,3404.5,3.7034799]
[1721258977911,0.61572864,3404.6,3404.5,3.7034799]
[1721258978137,0.61572864,3404.6,3404.5,0.7661999]
[1721258978632,0.86884296,3404.6,3404.5,0.7661999]
[1721258979536,0.25311432,3404.6,3404.2,3.99352]
[1721258979744,0.6158685,3404.4,3404.3,3.0]
[1721258979944,0.6158685,3404.4,3404.2,2.93752]
[1721258980115,0.61589608,3404.3,3404.2,2.93752]
[1721258980316,0.25322843,3404.3,3404.2,2.93752]
[1721258980550,0.92354729,3404.4,3404.2,2.93752]
[1721258980872,0.61587708,3404.3,3404.2,2.93752]
[1721258981042,0.86911202,3404.3,3404.2,2.93752]
[1721258981340,0.25323494,3404.3,3404.2,2.93752]
[1721258981540,0.25323494,3404.3,3404.2,6.291243]
[1721258981741,0.6158454,3404.9,3404.2,5.599123]
[1721258981941,0.6158454,3405.0,3404.9,5.29754]
[1721258982142,0.6158454,3405.2,3405.1,2.93677]
[1721258982344,0.84463546,3405.2,3405.1,3.99277]
[1721258982640,0.84463546,3405.2,3405.1,4.87861609]
[1721258983216,0.84463527,3405.2,3405.1,4.87861609]
[1721258984310,0.84463527,3405.2,3405.1,3.82261609]
[1721258986467,0.84466277,3405.2,3405.1,3.82261609]
[1721258989661,0.84465427,3405.2,3405.1,3.82261609]
[1721258990174,0.84465425,3405.2,3405.1,3.82261609]
[1721258992849,0.84463579,3405.2,3405.1,3.82261609]
[1721258995354,0.84463579,3405.2,3405.1,6.75938609]
[1721258995664,1.23139639,3405.6,3405.4,2.93651]
[1721258995665,0.92354729,3405.6,3405.4,2.93651]
[1721258995882,0.92354729,3405.5,3405.4,2.93651]
[1721258996063,0.6523133,3405.5,3405.4,2.93651]
[1721258999039,0.42354729,3405.5,3405.4,2.93651]
[1721258999240,0.42354729,3405.5,3405.4,3.61241361]
[1721258999941,0.60899697,3405.5,3405.4,3.61241361]
[1721259000262,0.18544599,3405.5,3405.4,3.61241361]
[1721259000443,0.18544599,3405.5,3405.4,6.54892361]
[1721259000643,1.23139639,3405.9,3405.6,2.93627]
[1721259000894,0.68946808,3405.8,3405.6,2.93627]
[1721259001178,1.23139639,3405.9,3405.6,2.93627]
[1721259001179,1.92086447,3405.7,3405.6,2.93627]
[1721259002145,1.92086447,3405.7,3405.4,2.93651]
[1721259002351,0.68949802,3405.6,3405.4,2.93651]
[1721259002678,0.18537948,3405.6,3405.4,2.93651]
[1721259002864,0.18537948,3405.5,3405.4,2.93651]
[1721259003070,0.18537948,3405.6,3405.4,2.93651]
[1721259003266,0.18537948,3405.5,3405.4,2.93651]
[1721259003467,1.23139639,3405.7,3405.4,2.93651]
[1721259003468,0.68948512,3405.6,3405.4,2.93651]
[1721259003662,0.18537948,3405.5,3405.4,2.93651]
[1721259003975,0.18537948,3405.5,3404.8,2.93699]
[1721259004180,0.18537948,3405.5,3403.9,0.41681561]
[1721259004181,2.4146,3405.2,3404.3,2.93737]
[1721259004385,0.6895338,3405.1,3404.3,3.484707]
[1721259004682,1.92711581,3405.1,3404.5,2.93726]
[1721259004846,1.92711581,3405.1,3404.4,2.93732]
[1721259004847,1.23139639,3404.9,3404.4,2.93732]
[1721259005187,0.92342408,3404.7,3404.4,2.93732]
[1721259005480,0.18866457,3404.6,3404.5,2.93728]
[1721259005684,1.23139639,3404.9,3404.5,2.93728]
[1721259005685,0.61559233,3404.7,3404.5,2.93728]
[1721259005848,0.61559233,3404.7,3404.6,2.9372]
[1721259006057,0.61559233,3404.9,3404.6,5.2708]
[1721259006286,0.61559233,3404.9,3404.8,2.93703]
[1721259006483,0.80424382,3404.9,3404.8,2.93703]
[1721259006653,0.18865149,3404.9,3404.8,2.93703]
[1721259006852,0.61559233,3404.9,3404.7,5.87416]
[1721259007192,0.61559233,3404.9,3404.8,3.99403]
[1721259007484,0.80424545,3404.9,3404.8,3.99403]
[1721259007648,0.80422587,3404.9,3404.8,3.99403]
[1721259008081,0.61559233,3404.9,3404.8,3.99403]
[1721259008244,0.80423595,3404.9,3404.8,2.93703]
[1721259008763,1.1120677,3404.9,3404.5,2.93726]
[1721259008972,0.80420954,3404.8,3404.5,2.93726]
[1721259009172,0.61556592,3404.8,3404.5,2.93726]
[1721259009370,0.1886782,3404.7,3404.6,2.9372]
[1721259009557,0.61556592,3404.8,3404.6,2.9372]
[1721259010683,0.61556592,3404.8,3404.7,5.87422]
[1721259010904,0.61556592,3405.0,3404.9,2.93694]
[1721259011083,0.19958486,3405.0,3404.9,2.93694]
[1721259011483,0.81517634,3405.1,3405.0,2.93685]
[1721259011872,0.81517634,3405.1,3405.0,3.524229]
[1721259012390,0.81525622,3405.1,3405.0,3.524229]
[1721259012552,0.81527768,3405.1,3405.0,3.524229]
[1721259012749,0.19961042,3405.1,3405.0,3.524229]
[1721259012954,0.61566704,3405.1,3405.0,3.524229]
[1721259013183,0.19961042,3405.1,3405.0,3.524229]
[1721259013562,0.81537076,3405.1,3405.0,8.844979]
[1721259013766,0.61576034,3405.1,3405.0,12.394979]
[1721259013970,0.61576034,3405.4,3405.3,5.87318]
[1721259014156,0.61576034,3405.4,3405.3,7.4063109]
[1721259014157,0.19956334,3405.4,3405.3,7.4063109]
[1721259014358,0.81532368,3405.4,3405.3,7.4063109]
[1721259014615,0.19956334,3405.4,3405.3,7.4063109]
[1721259016090,0.81532368,3405.4,3405.3,4.4697209]
[1721259016594,0.81532368,3405.4,3405.3,7.4063109]
[1721259016984,0.19956134,3405.4,3405.3,7.4063109]
[1721259017490,0.61576034,3405.5,3405.4,2.93651]
[1721259017692,0.81530504,3405.5,3405.4,3.67713309]
[1721259018998,0.81530504,3405.5,3405.4,3.87713309]
[1721259019364,0.81530504,3405.5,3405.4,6.81364309]
[1721259020061,0.81528119,3405.5,3405.4,6.81364309]
[1721259023204,0.61559604,3406.1,3405.5,2.3905]
[1721259023366,0.61559604,3406.4,3406.0,2.537]
[1721259023569,0.61559604,3406.6,3406.5,2.93556]
[1721259023994,0.61559604,3406.7,3406.6,2.93547]
[1721259024202,0.92342408,3406.7,3406.6,2.93547]
[1721259024402,0.92342408,3406.8,3406.6,2.93547]
[1721259024573,0.92342408,3406.8,3406.7,2.93539]
[1721259026713,0.92342408,3406.9,3406.7,2.93539]
[1721259026895,0.92342408,3406.9,3406.5,2.93556]
[1721259026896,0.92342408,3406.9,3406.8,2.9353]
[1721259027911,0.61462768,3407.0,3406.8,0.587086]
[1721259028114,0.92342408,3407.2,3406.4,2.537]
[1721259028115,0.61462768,3407.2,3407.0,2.93513]
[1721259028416,0.61462768,3407.3,3407.0,2.93513]
[1721259028905,0.61462768,3407.2,3407.0,2.93513]
[1721259029102,0.61462768,3407.3,3407.0,2.93513]
[1721259029676,0.76238178,3407.4,3407.0,2.93513]
[1721259029881,0.61462768,3407.3,3407.0,2.93513]
[1721259030635,0.76238178,3407.4,3407.1,2.93504]
[1721259031075,0.76238178,3407.4,3407.2,2.93495]
[1721259031276,0.76238178,3407.4,3407.0,2.93513]
[1721259031277,0.1477541,3407.4,3407.3,2.93487]
[1721259034428,0.1477541,3407.4,3407.1,2.93504]
[1721259034635,0.1477541,3407.4,3407.2,2.93495]
[1721259037555,0.1477541,3407.4,3407.3,2.93487]
[1721259038265,0.1477541,3407.4,3407.3,2.99356293]
[1721259038467,0.1477541,3407.4,3407.3,14.30129891]
[1721259038755,0.1477541,3407.4,3407.3,17.24261]
[1721259044769,0.1477541,3407.4,3407.3,17.24261]
[1721259050882,0.1477541,3407.4,3407.3,23.27248]
[1721259051029,0.0528099,3408.8,3408.7,5.86732]
[1721259052601,0.0528099,3408.8,3408.7,9.35098]
[1721259053086,0.0528099,3408.8,3408.7,12.35098]
[1721259053298,0.0528099,3408.8,3408.7,13.839778]
[1721259055370,0.0528099,3408.8,3408.7,16.136678]
[1721259059369,0.0528099,3408.8,3408.7,22.165338]
[1721259063618,0.0528099,3408.8,3408.7,15.586678]
[1721259065233,0.0528099,3408.8,3408.7,16.136678]
[1721259065933,0.0528099,3408.8,3408.7,16.336678]
[1721259066905,0.0528099,3408.8,3408.7,23.19756671]
[1721259068348,0.0528099,3408.8,3408.7,19.84849361]
[1721259068511,0.0528099,3408.8,3408.7,22.365338]
[1721259070625,0.0528099,3408.8,3408.7,11.239778]
[1721259071601,0.0528099,3408.8,3408.7,13.725478]
[1721259071803,0.0528099,3408.8,3408.7,16.725478]
[1721259073122,0.0528099,3408.8,3408.7,14.239778]
[1721259074467,0.0528099,3408.8,3408.7,17.334778]
[1721259074618,0.0528099,3408.8,3408.7,23.51716671]
[1721259074820,0.0528099,3408.8,3408.7,23.71716671]
[1721259075914,9.9e-06,3408.8,3408.7,23.71716671]
[1721259076363,9.9e-06,3408.8,3408.7,28.41582671]
[1721259076533,9.9e-06,3408.8,3408.7,25.48216671]
[1721259077552,9.9e-06,3408.8,3408.7,22.884938]
[1721259078171,9.9e-06,3408.8,3408.7,19.951278]
[1721259078471,9.9e-06,3408.8,3408.7,16.856278]
[1721259079145,9.9e-06,3408.8,3408.7,17.056278]
[1721259079561,9.9e-06,3408.8,3408.7,20.151278]
[1721259079758,9.9e-06,3408.8,3408.7,23.084938]
[1721259080070,9.9e-06,3408.8,3408.7,23.50175361]
[1721259080968,9.9e-06,3408.8,3408.7,20.56809361]
[1721259082059,9.9e-06,3408.8,3408.7,20.151278]
[1721259082434,9.9e-06,3408.8,3408.7,23.084938]
[1721259082724,9.9e-06,3408.8,3408.7,20.151278]
[1721259083569,9.9e-06,3408.8,3408.7,23.084938]
[1721259083752,9.9e-06,3408.8,3408.7,23.284938]
[1721259085433,9.9e-06,3408.8,3408.7,25.049938]
[1721259085741,2.2699099,3410.3,3409.9,2.93258]
[1721259087538,2.2699099,3410.3,3410.0,2.93253]
[1721259090766,2.2699099,3410.3,3410.2,2.93237]
[1721259093944,2.2699099,3410.3,3410.0,2.93252]
[1721259094139,2.2699099,3410.3,3409.7,2.93277]
[1721259094335,2.2894,3410.2,3409.8,3.0]
[1721259094540,2.90402768,3410.2,3409.8,3.0]
[1721259094768,0.73931226,3410.1,3409.8,3.0]
[1721259094980,2.90402768,3410.2,3409.8,3.0]
[1721259095178,0.1246833,3410.1,3409.8,3.0]
[1721259095377,0.73936315,3410.1,3409.8,3.0]
[1721259095540,0.12474472,3410.0,3409.6,2.93288]
[1721259095744,0.61462768,3410.1,3409.7,3.0]
[1721259095946,0.12476293,3410.0,3409.7,3.0]
[1721259096145,0.73939061,3410.0,3409.7,3.0]
[1721259096370,0.73948123,3409.9,3409.7,3.0]
[1721259096569,0.61462768,3409.9,3409.7,3.0]
[1721259096757,0.61462768,3410.0,3409.7,3.0]
[1721259097141,0.12483772,3409.9,3409.7,3.0]
[1721259097467,2.2911,3409.8,3409.7,3.0]
[1721259097664,3.03062739,3409.8,3409.7,3.0]
[1721259098074,3.03062739,3409.8,3409.7,5.9328]
[1721259098391,2.41599971,3409.8,3409.7,5.9328]
[1721259098709,0.74002796,3409.8,3409.7,5.9328]
[1721259099003,0.12489971,3409.8,3409.7,5.9328]
[1721259099491,3.36332379,3409.8,3409.7,3.0]
[1721259099675,2.43989971,3409.8,3409.5,3.0]
[1721259099883,0.61528872,3409.6,3409.5,5.93296]
[1721259100183,0.61528872,3409.7,3409.6,2.93289]
[1721259100496,0.7402548,3409.7,3409.6,5.93289]
[1721259100704,0.12495554,3409.7,3409.6,5.93289]
[1721259101242,2.93028872,3409.8,3409.7,2.9328]
[1721259101356,3.05525802,3409.8,3409.7,5.9328]
[1721259101563,0.74025802,3409.8,3409.7,10.052176]
[1721259101813,0.61528872,3409.8,3409.7,10.052176]
[1721259101970,1.53840201,3410.3,3409.8,5.86544]
[1721259101971,0.61528872,3409.9,3409.8,5.86544]
[1721259102308,1.23139639,3410.3,3409.7,4.736576]
[1721259102309,0.61528872,3410.0,3409.9,5.86526]
[1721259102504,0.92293308,3410.2,3410.0,2.93255]
[1721259102505,0.92293308,3410.1,3410.0,2.93255]
[1721259102859,0.92293308,3410.2,3410.1,2.93246]
[1721259103058,0.57524218,3410.2,3410.1,2.93246]
[1721259103805,0.45032153,3410.2,3410.1,2.93246]
[1721259103970,0.12494622,3410.2,3410.1,2.93246]
[1721259104398,0.57526775,3410.2,3410.1,2.93246]
[1721259105203,0.57527256,3410.2,3410.1,2.93246]
[1721259105504,1.80666895,3410.2,3410.1,2.93246]
[1721259105703,0.57527256,3410.2,3410.1,2.93246]
[1721259107212,0.57526957,3410.2,3410.1,2.93246]
[1721259107505,0.57526789,3410.2,3410.1,2.93246]
[1721259107918,1.80666428,3410.2,3410.0,2.93255]
[1721259108087,2.3512,3410.0,3409.9,3.0]
[1721259108433,7.03642093,3410.0,3408.8,7.39]
[1721259108639,0.92350334,3409.3,3409.2,2.93318]
[1721259108913,0.92356452,3409.3,3409.2,2.93318]
[1721259109117,0.92356452,3409.3,3408.7,1.2395198]
[1721259109118,2.92660497,3409.3,3409.0,2.93336]
[1721259109319,1.80688287,3409.2,3408.7,3.93366]
[1721259109618,0.92347302,3408.8,3408.7,3.93366]
[1721259110169,0.92347302,3408.8,3408.7,1.0]
[1721259110415,0.12836513,3408.8,3408.7,1.0]
[1721259110614,0.12830841,3408.8,3408.7,1.0]
[1721259111207,0.74344932,3408.8,3408.7,3.93366]
[1721259111825,0.61514091,3408.9,3408.7,3.93366]
[1721259112122,0.61514091,3409.0,3408.8,3.0]
[1721259112283,0.12816818,3408.9,3408.8,3.0]
[1721259112609,0.12816818,3408.9,3408.8,5.93358]
[1721259112815,0.61514091,3409.0,3408.9,2.93349]
[1721259113517,0.61514091,3409.1,3408.9,2.93349]
[1721259113823,0.12811809,3409.0,3408.9,2.93349]
[1721259113974,0.61514091,3409.1,3408.9,2.93349]
[1721259115111,0.61514091,3409.1,3409.0,2.93341]
[1721259115331,0.61514091,3409.3,3409.0,2.93341]
[1721259115473,0.61514091,3409.4,3409.3,2.93315]
[1721259115678,0.12800555,3409.4,3409.3,2.93315]
[1721259115903,0.74314646,3409.4,3409.3,2.93315]
[1721259116208,0.12800555,3409.4,3409.3,2.93315]
[1721259116420,0.12799394,3409.4,3409.3,2.93315]
[1721259117778,0.92347302,3409.7,3409.3,2.93315]
[1721259118109,0.10634842,3409.6,3409.3,2.93315]
[1721259118291,1.23133779,3409.9,3409.1,2.93331]
[1721259118292,0.92347302,3409.8,3409.4,2.93306]
[1721259118495,1.23133779,3409.9,3409.4,2.93306]
[1721259118496,1.02979708,3409.7,3409.4,2.93306]
[1721259118701,0.10632406,3409.6,3409.4,2.93306]
[1721259119315,0.92347302,3409.8,3409.4,2.93306]
[1721259119609,0.10632273,3409.7,3409.4,2.93306]
[1721259119822,0.10632273,3409.6,3409.4,2.93306]
[1721259120023,0.92347302,3409.8,3409.4,2.93306]
[1721259120240,0.10631815,3409.7,3409.4,2.93306]